fUST/lending_fUST_20250520
["ID","MTS","AMOUNT","RATE_DAILY","PERIOD"]
[361749110,1747755040713,-501.44768991,0.00017373,2]
[361749111,1747755040725,-500.0,0.00017373,2]
[361749112,1747755040737,-208.79167731,0.00017378,2]
[361749113,1747755040748,-164041.96335153,0.0001739,2]
[361749114,1747755040758,-151.0,0.0001739,2]
[361749115,1747755040769,-500.0,0.00017397,2]
[361749116,1747755040779,-500.0,0.00017397,2]
[361749117,1747755040789,-500.0,0.00017397,2]
[361749118,1747755040798,-500.0,0.00017397,2]
[361749119,1747755040808,-500.0,0.00017417,2]
[361749120,1747755040818,-151.0,0.00017417,2]
[361749121,1747755040827,-500.0,0.00017423,2]
[361749122,1747755040837,-500.0,0.00017423,2]
[361749123,1747755040847,-500.0,0.00017423,2]
[361749124,1747755040857,-500.0,0.00017425,2]
[361749125,1747755040868,-500.0,0.00017425,2]
[361749126,1747755040878,-1127.92775318,0.00017433,2]
[361749127,1747755040889,-713.94802478,0.00017438,2]
[361749128,1747755040899,-588.85841343,0.00017476,2]
[361749129,1747755040908,-6242.69140111,0.00017521,2]
[361749130,1747755040918,-600.0,0.00017533,2]
[361749131,1747755040928,-500.0,0.00017533,2]
[361749132,1747755040938,-500.0,0.00017533,2]
[361749133,1747755040947,-677.76,0.00017533,2]
[361749134,1747755040956,-160.0,0.00017533,2]
[361749135,1747755040967,-216.67221,0.00017534,2]
[361749136,1747755040976,-263.62,0.00017534,2]
[361749137,1747755040988,-434.61,0.00017534,2]
[361749138,1747755040999,-443.68,0.00017534,2]
[361749139,1747755041010,-430.0,0.00017534,2]
[361749140,1747755041019,-430.0,0.00017534,2]
[361749141,1747755041028,-546.63,0.00017534,2]
[361749142,1747755041038,-151.0,0.00017534,2]
[361749143,1747755041048,-252.8186001,0.00017534,2]
[361749144,1747755041058,-430.0,0.00017534,2]
[361749145,1747755041069,-430.0,0.00017534,2]
[361749146,1747755041078,-151.0,0.00017534,2]
[361749147,1747755041087,-591.528255,0.00017534,2]
[361749148,1747755041097,-591.528255,0.00017534,2]
[361749149,1747755041107,-151.0,0.00017534,2]
[361749150,1747755041118,-151.0,0.00017534,2]
[361749151,1747755041127,-151.0,0.00017534,2]
[361749152,1747755041136,-151.0,0.00017534,2]
[361749153,1747755041145,-151.0,0.00017534,2]
[361749154,1747755041155,-1103.97,0.00017534,2]
[361749155,1747755041166,-786.0,0.00017534,2]
[361749156,1747755041175,-177.201847,0.00017534,2]
[361749157,1747755041185,-430.0,0.00017534,2]
[361749158,1747755041195,-461.04,0.00017534,2]
[361749159,1747755041205,-485.08,0.00017534,2]
[361749160,1747755041215,-430.0,0.00017534,2]
[361749161,1747755041225,-430.0,0.00017534,2]
[361749162,1747755041235,-430.0,0.00017534,2]
[361749163,1747755041244,-430.0,0.00017534,2]
[361749164,1747755041254,-430.0,0.00017534,2]
[361749165,1747755041264,-430.0,0.00017534,2]
[361749166,1747755041273,-883.66,0.00017534,2]
[361749167,1747755041282,-430.0,0.00017534,2]
[361749168,1747755041293,-430.0,0.00017534,2]
[361749169,1747755041303,-430.0,0.00017534,2]
[361749170,1747755041313,-652.261682,0.00017534,2]
[361749171,1747755041323,-518.35,0.00017534,2]
[361749172,1747755041334,-652.261682,0.00017534,2]
[361749173,1747755041343,-151.0,0.00017534,2]
[361749174,1747755041355,-718.51,0.00017534,2]
[361749175,1747755041365,-430.0,0.00017534,2]
[361749176,1747755041375,-430.0,0.00017534,2]
[361749177,1747755041386,-1100.229447,0.00017534,2]
[361749178,1747755041397,-430.0,0.00017534,2]
[361749179,1747755041406,-1100.229447,0.00017534,2]
[361749180,1747755041417,-519.41,0.00017534,2]
[361749181,1747755041428,-5283.52,0.00017534,2]
[361749182,1747755041440,-480.29,0.00017534,2]
[361749183,1747755041449,-430.0,0.00017534,2]
[361749184,1747755041459,-430.0,0.00017534,2]
[361749185,1747755041470,-430.0,0.00017534,2]
[361749186,1747755041481,-430.0,0.00017534,2]
[361749187,1747755041492,-430.0,0.00017534,2]
[361749188,1747755041503,-430.0,0.00017534,2]
[361749189,1747755041512,-430.0,0.00017534,2]
[361749190,1747755041522,-430.0,0.00017534,2]
[361749191,1747755041532,-430.0,0.00017534,2]
[361749192,1747755041542,-430.0,0.00017534,2]
[361749193,1747755041551,-430.0,0.00017534,2]
[361749194,1747755041561,-980.83,0.00017534,2]
[361749195,1747755041570,-430.0,0.00017534,2]
[361749196,1747755041579,-430.0,0.00017534,2]
[361749197,1747755041590,-3236.06,0.00017534,2]
[361749198,1747755041600,-430.0,0.00017534,2]
[361749199,1747755041610,-430.0,0.00017534,2]
[361749200,1747755041620,-430.0,0.00017534,2]
[361749201,1747755041630,-1298.05,0.00017534,2]
[361749202,1747755041640,-430.0,0.00017534,2]
[361749203,1747755041650,-999.51,0.00017534,2]
[361749204,1747755041659,-939.83,0.00017534,2]
[361749205,1747755041672,-430.0,0.00017534,2]
[361749206,1747755041682,-530.0,0.00017534,2]
[361749207,1747755041692,-1159.8,0.00017534,2]
[361749208,1747755041702,-430.0,0.00017534,2]
[361749209,1747755041711,-671.82,0.00017534,2]
[361749210,1747755041722,-500.0,0.00017557,2]
[361749211,1747755041732,-500.0,0.00017557,2]
[361749212,1747755041744,-500.0,0.00017557,2]
[361749213,1747755041753,-1000.0,0.0001759,2]
[361749214,1747755041763,-151.0,0.000177,2]
[361749215,1747755041774,-1000.0,0.00017707,2]
[361749216,1747755041783,-1000.0,0.00017707,2]
[361749217,1747755041930,-1000.0,0.00017707,2]
[361749218,1747755041940,-1000.0,0.00017707,2]
[361749219,1747755041951,-424.4,0.00017797,3]
[361749220,1747755041961,-713.94802478,0.00017805,2]
[361749221,1747755041970,-486.29697092,0.00017807,2]
[361749222,1747755041980,-434.61,0.00017808,2]
[361749223,1747755041990,-443.68,0.00017808,2]
[361749224,1747755041999,-430.0,0.00017808,2]
[361749225,1747755042010,-182.74,0.00017808,2]
[361749226,1747755042019,-430.0,0.00017808,2]
[361749227,1747755042030,-430.0,0.00017808,2]
[361749228,1747755042040,-1103.97,0.00017808,2]
[361749229,1747755042050,-786.0,0.00017808,2]
[361749230,1747755042059,-430.0,0.00017808,2]
[361749231,1747755042069,-461.04,0.00017808,2]
[361749232,1747755042079,-485.08,0.00017808,2]
[361749233,1747755042089,-180.15,0.00017808,2]
[361749234,1747755042099,-430.0,0.00017808,2]
[361749235,1747755042108,-430.0,0.00017808,2]
[361749236,1747755042119,-430.0,0.00017808,2]
[361749237,1747755042130,-430.0,0.00017808,2]
[361749238,1747755042140,-430.0,0.00017808,2]
[361749239,1747755042149,-883.66,0.00017808,2]
[361749240,1747755042161,-430.0,0.00017808,2]
[361749241,1747755042171,-430.0,0.00017808,2]
[361749242,1747755042181,-430.0,0.00017808,2]
[361749243,1747755042192,-518.35,0.00017808,2]
[361749244,1747755042202,-718.51,0.00017808,2]
[361749245,1747755042213,-430.0,0.00017808,2]
[361749246,1747755042223,-384.81183,0.00017808,2]
[361749247,1747755042233,-430.0,0.00017808,2]
[361749248,1747755042243,-384.81183,0.00017808,2]
[361749249,1747755042253,-211.24,0.00017808,2]
[361749250,1747755042263,-5283.52,0.00017808,2]
[361749251,1747755042273,-430.0,0.00017808,2]
[361749252,1747755042283,-430.0,0.00017808,2]
[361749253,1747755042294,-578.66,0.00017808,2]
[361749254,1747755042304,-430.0,0.00017808,2]
[361749255,1747755042315,-151.0,0.00017808,2]
[361749256,1747755042326,-430.0,0.00017808,2]
[361749257,1747755042336,-151.0,0.00017808,2]
[361749258,1747755042347,-430.0,0.00017808,2]
[361749259,1747755042369,-430.0,0.00017808,2]
[361749260,1747755042390,-182.95237191,0.00017808,2]
[361749261,1747755042406,-430.0,0.00017808,2]
[361749262,1747755042416,-430.0,0.00017808,2]
[361749263,1747755042426,-430.0,0.00017808,2]
[361749264,1747755042436,-980.83,0.00017808,2]
[361749265,1747755042447,-199.348031,0.00017808,2]
[361749266,1747755042457,-430.0,0.00017808,2]
[361749267,1747755042468,-430.0,0.00017808,2]
[361749268,1747755042479,-151.0,0.00017808,2]
[361749269,1747755042489,-3236.06,0.00017808,2]
[361749270,1747755042499,-430.0,0.00017808,2]
[361749271,1747755042509,-430.0,0.00017808,2]
[361749272,1747755042518,-430.0,0.00017808,2]
[361749273,1747755042528,-1298.05,0.00017808,2]
[361749274,1747755042539,-430.0,0.00017808,2]
[361749275,1747755042548,-151.0,0.00017808,2]
[361749276,1747755042558,-295.301443,0.00017808,2]
[361749277,1747755042568,-999.51,0.00017808,2]
[361749278,1747755042578,-430.0,0.00017808,2]
[361749279,1747755042588,-1159.8,0.00017808,2]
[361749280,1747755042598,-939.83,0.00017808,2]
[361749281,1747755042607,-430.0,0.00017808,2]
[361749282,1747755042616,-671.82,0.00017808,2]
[361749283,1747755042628,-153.527194,0.00017831,2]
[361749284,1747755042638,-6242.69140111,0.00017831,2]
[361749285,1747755042648,-2816.6,0.000179,2]
[361749286,1747755042658,-2816.6,0.000179,2]
[361749287,1747755042668,-2816.6,0.000179,2]
[361749288,1747755042677,-2816.5,0.000179,2]
[361749289,1747755042687,-1000.0,0.00017905,2]
[361749290,1747755042697,-1000.0,0.00017905,2]
[361749291,1747755042706,-1000.0,0.00017905,2]
[361749292,1747755042715,-1000.0,0.00017921,2]
[361749293,1747755042725,-994.24378014,0.00017921,2]
[361749294,1747755042735,-1000.0,0.00017945,2]
[361749295,1747755042744,-502.41900722,0.00017945,2]
[361749296,1747755042753,-500.0,0.00017945,2]
[361749297,1747755042765,-1000.0,0.00017945,2]
[361749298,1747755042774,-215.0738,0.00017949,2]
[361749299,1747755042784,-1000.0,0.0001797,2]
[361749300,1747755042794,-1000.0,0.0001797,2]
[361749301,1747755042805,-2000.00083938,0.00018025,2]
[361749302,1747755042815,-677.76,0.00018081,2]
[361749304,1747755042826,-434.61,0.00018082,2]
[361749306,1747755042835,-443.68,0.00018082,2]
[361749307,1747755042845,-430.0,0.00018082,2]
[361749308,1747755042856,-151.0,0.00018082,2]
[361749309,1747755042866,-430.0,0.00018082,2]
[361749310,1747755042876,-430.0,0.00018082,2]
[361749311,1747755042886,-243.960544,0.00018082,2]
[361749312,1747755042895,-243.960544,0.00018082,2]
[361749313,1747755042905,-151.0,0.00018082,2]
[361749314,1747755042915,-151.0,0.00018082,2]
[361749315,1747755042924,-151.0,0.00018082,2]
[361749316,1747755042934,-1103.97,0.00018082,2]
[361749317,1747755042944,-786.0,0.00018082,2]
[361749318,1747755042954,-430.0,0.00018082,2]
[361749319,1747755042963,-461.04,0.00018082,2]
[361749320,1747755042973,-485.08,0.00018082,2]
[361749323,1747755042983,-430.0,0.00018082,2]
[361749324,1747755042993,-430.0,0.00018082,2]
[361749326,1747755043003,-430.0,0.00018082,2]
[361749328,1747755043013,-216.69,0.00018082,2]
[361749330,1747755043023,-395.21,0.00018082,2]
[361749331,1747755043033,-883.66,0.00018082,2]
[361749332,1747755043043,-430.0,0.00018082,2]
[361749333,1747755043053,-430.0,0.00018082,2]
[361749334,1747755043062,-430.0,0.00018082,2]
[361749336,1747755043072,-652.261682,0.00018082,2]
[361749338,1747755043082,-518.35,0.00018082,2]
[361749340,1747755043092,-652.261682,0.00018082,2]
[361749341,1747755043102,-151.0,0.00018082,2]
[361749342,1747755043113,-718.51,0.00018082,2]
[361749343,1747755043126,-430.0,0.00018082,2]
[361749344,1747755043136,-430.0,0.00018082,2]
[361749345,1747755043147,-1100.229447,0.00018082,2]
[361749346,1747755043157,-1100.229447,0.00018082,2]
[361749347,1747755043167,-5283.52,0.00018082,2]
[361749349,1747755043176,-430.0,0.00018082,2]
[361749351,1747755043186,-430.0,0.00018082,2]
[361749352,1747755043197,-430.0,0.00018082,2]
[361749353,1747755043207,-430.0,0.00018082,2]
[361749354,1747755043217,-430.0,0.00018082,2]
[361749355,1747755043227,-394.1,0.00018082,2]
[361749356,1747755043237,-205.36,0.00018082,2]
[361749357,1747755043247,-430.0,0.00018082,2]
[361749358,1747755043257,-430.0,0.00018082,2]
[361749359,1747755043266,-980.83,0.00018082,2]
[361749361,1747755043276,-430.0,0.00018082,2]
[361749363,1747755043286,-430.0,0.00018082,2]
[361749364,1747755043297,-3236.06,0.00018082,2]
[361749365,1747755043307,-430.0,0.00018082,2]
[361749366,1747755043316,-430.0,0.00018082,2]
[361749367,1747755043326,-430.0,0.00018082,2]
[361749368,1747755043336,-1298.05,0.00018082,2]
[361749369,1747755043346,-430.0,0.00018082,2]
[361749370,1747755043359,-999.51,0.00018082,2]
[361749371,1747755043371,-430.0,0.00018082,2]
[361749373,1747755043381,-1159.8,0.00018082,2]
[361749374,1747755043391,-939.83,0.00018082,2]
[361749375,1747755043401,-430.0,0.00018082,2]
[361749376,1747755043411,-671.82,0.00018082,2]
[361749377,1747755043420,-1000.0,0.00018105,2]
[361749378,1747755043430,-151.0,0.00018138,2]
[361749379,1747755043440,-284.636306,0.00018138,2]
[361749380,1747755043450,-151.0,0.00018138,2]
[361749381,1747755043460,-1500.0,0.00018138,2]
[361749382,1747755043470,-151.0,0.00018141,2]
[361749383,1747755043480,-151.0,0.00018141,2]
[361749384,1747755043490,-591.528255,0.00018141,2]
[361749387,1747755043499,-591.528255,0.00018141,2]
[361749389,1747755043509,-151.0,0.00018141,2]
[361749391,1747755043519,-151.0,0.00018141,2]
[361749392,1747755043529,-6242.69140111,0.00018141,2]
[361749394,1747755043539,-151.0,0.000182,2]
[361749396,1747755043548,-1500.0,0.00018255,2]
[361749399,1747755043557,-1500.0,0.00018255,2]
[361749402,1747755043566,-1500.0,0.00018255,2]
[361749404,1747755043576,-500.0,0.00018255,2]
[361749406,1747755043586,-539.827,0.00018324,2]
[361749408,1747755043594,-2235.0,0.00018324,2]
[361749410,1747755043604,-677.76,0.00018342,2]
[361749412,1747755043613,-24900.0,0.00018343,2]
[361749414,1747755043625,-151.0,0.00018343,2]
[361749416,1747755043634,-151.0,0.00018343,2]
[361749418,1747755043644,-151.0,0.00018343,2]
[361749420,1747755043653,-151.0,0.00018343,2]
[361749422,1747755043663,-151.0,0.00018343,2]
[361749424,1747755043672,-151.0,0.00018343,2]
[361749426,1747755043682,-151.0,0.00018343,2]
[361749428,1747755043691,-151.0,0.00018343,2]
[361749430,1747755043702,-151.0,0.00018343,2]
[361749432,1747755043711,-677.76,0.00018355,2]
[361749434,1747755043721,-434.61,0.00018356,2]
[361749436,1747755043730,-443.68,0.00018356,2]
[361749438,1747755043740,-406.76,0.00018356,2]
[361749440,1747755043750,-430.0,0.00018356,2]
[361749442,1747755043759,-423.13,0.00018356,2]
[361749444,1747755043768,-1103.97,0.00018356,2]
[361749446,1747755043779,-786.0,0.00018356,2]
[361749448,1747755043788,-430.0,0.00018356,2]
[361749450,1747755043798,-461.04,0.00018356,2]
[361749453,1747755043808,-485.08,0.00018356,2]
[361749456,1747755043818,-430.0,0.00018356,2]
[361749459,1747755043828,-430.0,0.00018356,2]
[361749461,1747755043837,-430.0,0.00018356,2]
[361749463,1747755043846,-883.66,0.00018356,2]
[361749465,1747755043855,-430.0,0.00018356,2]
[361749467,1747755043865,-430.0,0.00018356,2]
[361749469,1747755043876,-430.0,0.00018356,2]
[361749471,1747755043885,-518.35,0.00018356,2]
[361749473,1747755043895,-718.51,0.00018356,2]
[361749475,1747755043904,-315.55,0.00018356,2]
[361749477,1747755043914,-384.81183,0.00018356,2]
[361749479,1747755043923,-430.0,0.00018356,2]
[361749481,1747755043932,-384.81183,0.00018356,2]
[361749483,1747755043941,-5283.52,0.00018356,2]
[361749485,1747755043950,-430.0,0.00018356,2]
[361749487,1747755043959,-430.0,0.00018356,2]
[361749489,1747755043968,-430.0,0.00018356,2]
[361749491,1747755043978,-430.0,0.00018356,2]
[361749493,1747755043987,-430.0,0.00018356,2]
[361749495,1747755043997,-430.0,0.00018356,2]
[361749497,1747755044006,-430.0,0.00018356,2]
[361749499,1747755044016,-980.83,0.00018356,2]
[361749501,1747755044025,-430.0,0.00018356,2]
[361749503,1747755044035,-430.0,0.00018356,2]
[361749505,1747755044044,-3236.06,0.00018356,2]
[361749507,1747755044053,-430.0,0.00018356,2]
[361749509,1747755044063,-430.0,0.00018356,2]
[361749511,1747755044072,-430.0,0.00018356,2]
[361749513,1747755044081,-1298.05,0.00018356,2]
[361749515,1747755044091,-430.0,0.00018356,2]
[361749517,1747755044100,-999.51,0.00018356,2]
[361749519,1747755044112,-430.0,0.00018356,2]
[361749521,1747755044121,-1159.8,0.00018356,2]
[361749523,1747755044131,-939.83,0.00018356,2]
[361749524,1747755044140,-430.0,0.00018356,2]
[361749526,1747755044150,-671.82,0.00018356,2]
[361749528,1747755044159,-6242.69140111,0.00018452,2]
[361749529,1747755044168,-1500.0,0.00018453,2]
[361749530,1747755044178,-505.30963114,0.00018453,2]
[361749531,1747755044187,-500.0,0.00018453,2]
[361749532,1747755044197,-1500.0,0.00018468,2]
[361749533,1747755044208,-186.35833873,0.00018493,2]
[361749534,1747755044218,-503.57840558,0.00018493,2]
[361749535,1747755044228,-652.261682,0.00018518,2]
[361749536,1747755044239,-652.261682,0.00018518,2]
[361749537,1747755044249,-151.0,0.00018518,2]
[361749538,1747755044258,-1100.229447,0.00018518,2]
[361749539,1747755044269,-1100.229447,0.00018518,2]
[361749540,1747755044278,-405.16507239,0.00018518,2]
[361749541,1747755044287,-1500.0,0.00018518,2]
[361749542,1747755044297,-151.0,0.000186,2]
[361749543,1747755044306,-587.0,0.00018603,2]
[361749544,1747755044316,-587.0,0.00018603,2]
[361749545,1747755044325,-151.0,0.0001863,2]
[361749546,1747755044335,-151.0,0.0001863,2]
[361749547,1747755044344,-151.0,0.0001863,2]
[361749548,1747755044356,-434.61,0.0001863,2]
[361749549,1747755044366,-443.68,0.0001863,2]
[361749550,1747755044377,-430.0,0.0001863,2]
[361749551,1747755044386,-151.0,0.0001863,2]
[361749552,1747755044395,-151.0,0.0001863,2]
[361749553,1747755044404,-151.0,0.0001863,2]
[361749554,1747755044414,-1103.97,0.0001863,2]
[361749555,1747755044423,-786.0,0.0001863,2]
[361749556,1747755044433,-327.06,0.0001863,2]
[361749557,1747755044443,-461.04,0.0001863,2]
[361749558,1747755044453,-485.08,0.0001863,2]
[361749559,1747755044463,-430.0,0.0001863,2]
[361749560,1747755044472,-430.0,0.0001863,2]
[361749561,1747755044482,-269.39,0.0001863,2]
[361749562,1747755044492,-883.66,0.0001863,2]
[361749563,1747755044503,-430.0,0.0001863,2]
[361749564,1747755044513,-430.0,0.0001863,2]
[361749565,1747755044525,-430.0,0.0001863,2]
[361749566,1747755044534,-518.35,0.0001863,2]
[361749567,1747755044545,-718.51,0.0001863,2]
[361749568,1747755044555,-430.0,0.0001863,2]
[361749569,1747755044565,-5283.52,0.0001863,2]
[361749570,1747755044574,-430.0,0.0001863,2]
[361749571,1747755044584,-219.24,0.0001863,2]
[361749572,1747755044594,-430.0,0.0001863,2]
[361749573,1747755044604,-151.0,0.0001863,2]
[361749574,1747755044615,-430.0,0.0001863,2]
[361749575,1747755044626,-269.94,0.0001863,2]
[361749576,1747755044637,-430.0,0.0001863,2]
[361749577,1747755044647,-430.0,0.0001863,2]
[361749578,1747755044657,-980.83,0.0001863,2]
[361749579,1747755044667,-430.0,0.0001863,2]
[361749580,1747755044676,-430.0,0.0001863,2]
[361749581,1747755044686,-151.0,0.0001863,2]
[361749582,1747755044696,-3236.06,0.0001863,2]
[361749583,1747755044705,-430.0,0.0001863,2]
[361749584,1747755044828,-430.0,0.0001863,2]
[361749585,1747755044851,-430.0,0.0001863,2]
[361749586,1747755044861,-1298.05,0.0001863,2]
[361749587,1747755044873,-430.0,0.0001863,2]
[361749588,1747755044883,-999.51,0.0001863,2]
[361749589,1747755044893,-430.0,0.0001863,2]
[361749590,1747755044903,-1159.8,0.0001863,2]
[361749591,1747755044912,-939.83,0.0001863,2]
[361749592,1747755044922,-503.02869105,0.0001863,2]
[361749593,1747755044932,-671.82,0.0001863,2]
[361749594,1747755044941,-1500.0,0.00018653,2]
[361749595,1747755044951,-2000.0,0.00018686,2]
[361749596,1747755044961,-151.0,0.000187,2]
[361749597,1747755044970,-588.85841343,0.00018714,2]
[361749598,1747755044980,-243.960544,0.00018762,2]
[361749599,1747755044990,-243.960544,0.00018762,2]
[361749600,1747755044999,-6242.69140111,0.00018762,2]
[361749601,1747755045008,-2000.0,0.00018803,2]
[361749602,1747755045018,-1180.55544505,0.00018803,2]
[361749603,1747755045027,-5000.0,0.00018859,2]
[361749604,1747755045036,-677.76,0.00018899,2]
[361749605,1747755045046,-281.374815,0.000189,2]
[361749606,1747755045055,-151.0,0.000189,2]
[361749607,1747755045064,-591.528255,0.000189,2]
[361749608,1747755045075,-591.528255,0.000189,2]
[361749609,1747755045084,-151.0,0.000189,2]
[361749610,1747755045094,-151.0,0.000189,2]
[361749611,1747755045105,-514.984,0.00018904,2]
[361749612,1747755045114,-434.61,0.00018904,2]
[361749613,1747755045124,-443.68,0.00018904,2]
[361749614,1747755045134,-430.0,0.00018904,2]
[361749615,1747755045143,-1103.97,0.00018904,2]
[361749616,1747755045153,-786.0,0.00018904,2]
[361749617,1747755045163,-461.04,0.00018904,2]
[361749618,1747755045172,-485.08,0.00018904,2]
[361749619,1747755045182,-430.0,0.00018904,2]
[361749620,1747755045193,-430.0,0.00018904,2]
[361749621,1747755045205,-883.66,0.00018904,2]
[361749622,1747755045217,-430.0,0.00018904,2]
[361749623,1747755045234,-430.0,0.00018904,2]
[361749624,1747755045245,-230.59,0.00018904,2]
[361749625,1747755045255,-518.35,0.00018904,2]
[361749626,1747755045264,-718.51,0.00018904,2]
[361749627,1747755045276,-384.81183,0.00018904,2]
[361749628,1747755045285,-384.81183,0.00018904,2]
[361749629,1747755045294,-262.33,0.00018904,2]
[361749630,1747755045303,-5283.52,0.00018904,2]
[361749631,1747755045313,-430.0,0.00018904,2]
[361749632,1747755045323,-430.0,0.00018904,2]
[361749633,1747755045332,-430.0,0.00018904,2]
[361749634,1747755045342,-430.0,0.00018904,2]
[361749635,1747755045351,-430.0,0.00018904,2]
[361749636,1747755045365,-980.83,0.00018904,2]
[361749637,1747755045376,-430.0,0.00018904,2]
[361749638,1747755045386,-430.0,0.00018904,2]
[361749639,1747755045397,-3236.06,0.00018904,2]
[361749640,1747755045406,-430.0,0.00018904,2]
[361749641,1747755045415,-430.0,0.00018904,2]
[361749642,1747755045424,-430.0,0.00018904,2]
[361749643,1747755045441,-1298.05,0.00018904,2]
[361749644,1747755045451,-430.0,0.00018904,2]
[361749645,1747755045460,-151.0,0.00018904,2]
[361749646,1747755045470,-999.51,0.00018904,2]
[361749647,1747755045479,-344.67,0.00018904,2]
[361749648,1747755045490,-1159.8,0.00018904,2]
[361749649,1747755045499,-939.83,0.00018904,2]
[361749650,1747755045509,-671.82,0.00018904,2]
[361749651,1747755045518,-200.0,0.0001894,2]
[361749652,1747755045528,-2000.0,0.00019001,2]
[361749653,1747755045537,-6242.69140111,0.00019072,2]
[361749654,1747755045547,-165.78476889,0.00019078,2]
[361749655,1747755045556,-151.0,0.000191,2]
[361749656,1747755045566,-5908.9413068,0.00019136,2]
[361749657,1747755045575,-677.76,0.00019177,2]
[361749658,1747755045584,-151.0,0.00019178,2]
[361749659,1747755045594,-434.61,0.00019178,2]
[361749660,1747755045603,-443.68,0.00019178,2]
[361749661,1747755045613,-153.020571,0.00019178,2]
[361749662,1747755045626,-151.0,0.00019178,2]
[361749663,1747755045635,-151.0,0.00019178,2]
[361749664,1747755045644,-151.0,0.00019178,2]
[361749665,1747755045654,-370.64765325,0.00019178,2]
[361749666,1747755045663,-151.0,0.00019178,2]
[361749667,1747755045673,-1103.97,0.00019178,2]
[361749668,1747755045683,-786.0,0.00019178,2]
[361749669,1747755045692,-461.04,0.00019178,2]
[361749670,1747755045701,-485.08,0.00019178,2]
[361749671,1747755045711,-430.0,0.00019178,2]
[361749672,1747755045720,-430.0,0.00019178,2]
[361749673,1747755045729,-883.66,0.00019178,2]
[361749674,1747755045739,-430.0,0.00019178,2]
[361749675,1747755045748,-321.54,0.00019178,2]
[361749676,1747755045758,-652.261682,0.00019178,2]
[361749677,1747755045767,-518.35,0.00019178,2]
[361749678,1747755045777,-652.261682,0.00019178,2]
[361749679,1747755045787,-151.0,0.00019178,2]
[361749680,1747755045796,-718.51,0.00019178,2]
[361749681,1747755045806,-1100.229447,0.00019178,2]
[361749682,1747755045816,-1100.229447,0.00019178,2]
[361749683,1747755045826,-5283.52,0.00019178,2]
[361749684,1747755045835,-430.0,0.00019178,2]
[361749685,1747755045845,-430.0,0.00019178,2]
[361749686,1747755045854,-151.0,0.00019178,2]
[361749687,1747755045864,-313.98901904,0.00019178,2]
[361749688,1747755045876,-430.0,0.00019178,2]
[361749689,1747755045887,-430.0,0.00019178,2]
[361749690,1747755045897,-980.83,0.00019178,2]
[361749691,1747755045906,-430.0,0.00019178,2]
[361749693,1747755045916,-430.0,0.00019178,2]
[361749695,1747755045926,-151.0,0.00019178,2]
[361749697,1747755045937,-3236.06,0.00019178,2]
[361749699,1747755045948,-430.0,0.00019178,2]
[361749700,1747755045959,-430.0,0.00019178,2]
[361749701,1747755045968,-430.0,0.00019178,2]
[361749702,1747755045978,-430.0,0.00019178,2]